bitfinex/quotes_ETHUSD_20240927
["timestamp","ask_amount","ask_price","bid_price","bid_amount"]
[1727441169245,0.7959,2667.1,2666.7,3.74985]
[1727441169434,0.7959,2667.1,2667.0,3.74953]
[1727441169635,0.7936,2667.5,2667.0,0.75193525]
[1727441169872,0.7936,2667.5,2667.1,3.74937]
[1727441170083,0.7936,2667.5,2667.3,3.74909]
[1727441170249,4.56815,2667.9,2667.4,3.74896]
[1727441171085,3.74845,2667.8,2667.3,7.51891252]
[1727441171237,3.74845,2667.8,2667.3,8.72232577]
[1727441171638,7.49694,2667.8,2667.3,8.72232577]
[1727441171975,3.74845,2667.8,2667.3,8.72232577]
[1727441172145,0.8198,2667.9,2667.4,3.74896]
[1727441173054,0.8198,2667.9,2667.5,3.74876]
[1727441173260,0.8198,2667.9,2667.5,4.99585558]
[1727441173793,4.56807,2667.9,2667.5,1.24709558]
[1727441174093,0.8198,2667.9,2667.4,3.74888]
[1727441174246,0.8198,2667.9,2667.4,7.49775]
[1727441174450,0.8198,2667.9,2667.5,3.7488]
[1727441175746,0.8198,2667.9,2667.6,3.74868]
[1727441175945,0.8283,2668.1,2667.7,3.74843]
[1727441176368,0.8283,2668.1,2667.6,3.74858]
[1727441177248,0.8283,2668.1,2667.8,3.7483]
[1727441177477,0.8283,2668.1,2667.6,3.74856]
[1727441177879,0.8283,2668.1,2667.8,3.74837]
[1727441178155,2.3284402,2668.3,2667.8,0.75718951]
[1727441178349,0.7633,2668.3,2668.0,3.74805]
[1727441179354,0.7566,2668.5,2668.2,3.74776]
[1727441179859,0.7566,2668.5,2668.1,4.672765]
[1727441180292,0.7566,2668.5,2668.2,3.74782]
[1727441181353,0.7566,2668.5,2668.2,3.74776]
[1727441182746,0.005,2668.6,2668.2,3.74776]
[1727441183266,3.75229,2668.6,2668.1,0.924805]
[1727441183465,0.005,2668.6,2668.1,0.55]
[1727441183665,0.005,2668.6,2668.2,3.74783]
[1727441185461,0.005,2668.6,2668.1,0.55]
[1727441185698,0.005,2668.6,2668.2,3.74782]
[1727441186197,0.005,2668.6,2668.4,3.74749]
[1727441186402,0.005,2668.6,2668.5,3.74742]
[1727441186571,0.005,2668.6,2668.5,3.76982252]
[1727441186790,0.005,2668.6,2668.4,3.74749]
[1727441187275,0.005,2668.6,2668.5,8.82904252]
[1727441187457,0.005,2668.6,2668.5,6.71625702]
[1727441187657,0.005,2668.6,2668.5,0.55]
[1727441187899,0.005,2668.6,2668.5,4.29742]
[1727441188398,0.005,2668.6,2668.5,0.55]
[1727441188598,0.005,2668.6,2668.2,3.74783]
[1727441188914,0.005,2668.6,2668.3,3.55]
[1727441189256,0.005,2668.6,2668.3,4.29769]
[1727441190663,0.005,2668.6,2668.3,0.55]
[1727441190859,0.7658,2668.5,2668.3,0.55]
[1727441192132,0.7658,2668.5,2668.3,4.29761]
[1727441193227,0.7658,2668.5,2668.2,3.0]
[1727441193429,0.7658,2668.5,2668.3,3.74768]
[1727441193632,0.005,2668.6,2668.4,7.51725252]
[1727441193945,0.005,2668.6,2668.5,5.12872]
[1727441194406,0.005,2668.6,2668.5,8.12872]
[1727441197529,0.005,2668.6,2668.5,26.185282]
[1727441197729,0.005,2668.6,2668.5,15.884121]
[1727441197916,0.005,2668.6,2668.5,16.25431475]
[1727441198698,0.005,2668.6,2668.5,15.59488075]
[1727441199039,0.005,2668.6,2668.5,10.57381375]
[1727441201152,0.005,2668.6,2668.5,25.50052875]
[1727441201472,0.005,2668.6,2668.5,25.93913328]
[1727441202332,0.005,2668.6,2668.5,18.77779175]
[1727441203074,0.005,2668.6,2668.5,17.43360675]
[1727441203232,0.005,2668.6,2668.5,15.59077775]
[1727441203433,0.005,2668.6,2668.5,7.02381375]
[1727441203634,0.005,2668.6,2668.5,3.74742]
[1727441204136,0.005,2668.6,2668.4,3.74743]
[1727441205263,0.005,2668.6,2668.2,3.76982252]
[1727441205464,0.005,2668.6,2668.3,3.74762]
[1727441205739,0.005,2668.6,2668.4,3.74746]
[1727441206077,0.005,2668.6,2668.5,3.82236551]
[1727441206674,0.005,2668.6,2668.5,7.29742]
[1727441209352,0.7498,2668.9,2668.6,0.55]
[1727441209552,0.7498,2668.9,2668.6,4.29725]
[1727441210641,0.7498,2668.9,2668.6,3.74725]
[1727441211269,1.21226847,2668.9,2668.4,3.74746]
[1727441211448,0.7498,2668.9,2668.4,3.74746]
[1727441212394,0.7498,2668.9,2668.5,3.74741]
[1727441215078,0.7498,2668.9,2668.6,3.74718]
[1727441215546,0.7498,2668.9,2668.4,4.55336]
[1727441215547,0.7498,2668.9,2668.5,3.74742]
[1727441215888,4.52794,2668.8,2668.2,3.74778]
[1727441216183,3.89809722,2669.0,2668.2,3.74778]
[1727441216184,0.7806,2668.6,2668.2,3.74784]
[1727441216388,0.7806,2668.6,2667.8,0.764]
[1727441216389,0.7806,2668.6,2668.0,3.74798]
[1727441216574,0.7806,2668.6,2668.1,3.74792]
[1727441216748,0.7806,2668.6,2668.2,3.7478]
[1727441218087,1.233364,2668.6,2668.2,3.7478]
[1727441218959,1.233364,2668.6,2668.3,3.74757]
[1727441219332,0.7806,2668.6,2668.2,7.49551]
[1727441219530,0.7806,2668.6,2668.2,3.74775]
[1727441219663,0.7806,2668.6,2668.2,7.49551]
[1727441219866,0.7806,2668.6,2668.3,3.74768]
[1727441220461,0.7806,2668.6,2668.4,3.74754]
[1727441220664,0.7806,2668.6,2668.2,3.74774]
[1727441220983,0.7719,2668.5,2668.2,3.74774]
[1727441221773,0.7719,2668.5,2668.3,3.7476]
[1727441222001,0.7719,2668.5,2668.2,3.74774]
[1727441222189,0.7719,2668.5,2667.8,10.51818252]
[1727441222529,0.7719,2668.5,2668.2,3.74776]
[1727441223138,0.7719,2668.5,2668.1,3.74793]
[1727441223330,0.7719,2668.5,2668.2,3.74775]
[1727441224114,0.7719,2668.5,2668.1,7.49581]
[1727441224435,0.7719,2668.5,2668.1,7.49574]
[1727441224726,0.7719,2668.5,2668.2,3.74781]
[1727441224932,0.7719,2668.5,2668.1,3.74786]
[1727441225235,0.7815,2668.4,2667.8,3.0]
[1727441225438,0.7815,2668.5,2667.8,3.55]
[1727441225644,0.7815,2668.2,2667.5,6.81366488]
[1727441225868,3.76982252,2667.8,2667.5,0.06494488]
[1727441226165,0.7815,2667.7,2667.5,0.06494488]
[1727441226455,0.7815,2667.5,2667.1,7.49858]
[1727441226657,0.7815,2667.5,2667.2,3.8142011]
[1727441226959,0.7815,2667.5,2667.4,3.74896]
[1727441227464,0.8299,2668.0,2667.6,3.74865]
[1727441227666,0.8299,2668.0,2667.6,7.49726]
[1727441227828,0.8299,2668.0,2667.3,3.74907]
[1727441228024,0.8299,2668.0,2667.9,3.74826]
[1727441228223,0.8299,2668.4,2668.1,3.74785]
[1727441228423,0.8299,2668.4,2668.3,3.7477]
[1727441228730,6.25459799,2669.0,2668.5,3.74739]
[1727441228731,0.7622,2668.8,2668.5,3.74739]
[1727441229145,0.7622,2668.8,2668.5,7.49473]
[1727441229347,0.7622,2668.8,2668.5,3.74734]
[1727441229943,0.7622,2668.8,2668.3,3.74762]
[1727441230350,0.828,2668.7,2668.1,3.74797]
[1727441230558,0.828,2668.7,2668.1,3.74786]
[1727441230869,0.828,2668.7,2668.2,3.74781]
[1727441231161,0.828,2668.7,2668.0,3.74807]
[1727441231162,0.828,2668.5,2668.0,3.74807]
[1727441231462,3.74742,2668.5,2667.8,3.74839]
[1727441231638,0.828,2668.4,2667.8,7.49664]
[1727441231839,4.59782252,2668.4,2667.7,3.0]
[1727441232039,0.828,2668.2,2667.4,3.75188925]
[1727441232344,0.828,2668.2,2668.0,3.74798]
[1727441232866,0.828,2668.2,2667.4,3.75188925]
[1727441232867,0.828,2668.2,2667.8,3.74838]
[1727441233841,0.828,2668.2,2667.6,3.74861]
[1727441234045,0.828,2668.2,2667.7,3.74854]
[1727441234568,4.57252,2668.0,2667.4,3.74883]
[1727441234786,0.8249,2667.7,2667.3,3.74904]
[1727441235079,0.8249,2667.7,2667.2,3.7492]
[1727441235241,0.8249,2667.7,2667.1,3.74925]
[1727441235442,4.57346,2667.7,2667.1,3.74925]
[1727441235781,3.74872,2667.6,2667.1,3.74925]
[1727441236141,0.8249,2667.7,2667.1,7.49852]
[1727441236376,1.65922125,2667.7,2667.1,7.49852]
[1727441236687,5.40780125,2667.7,2667.1,3.74925]
[1727441237001,0.8147,2667.6,2667.1,3.74925]
[1727441237781,3.76982252,2667.4,2666.7,3.74982]
[1727441237965,7.51887252,2667.4,2666.8,3.7497]
[1727441238168,0.8288,2667.3,2666.7,3.74982]
[1727441238759,2.03847625,2667.3,2666.7,3.74994]
[1727441238945,5.78760625,2667.3,2666.7,3.74994]
[1727441239351,7.51936252,2667.0,2666.4,3.75029]
[1727441239603,8.33806252,2667.0,2666.4,3.75029]
[1727441239952,0.79,2666.9,2666.4,3.75029]
[1727441240374,3.74981,2666.8,2666.2,3.75054]
[1727441240585,0.79,2666.9,2666.3,3.75049]
[1727441240753,0.79,2666.9,2666.5,3.75022]
[1727441241191,0.79,2666.9,2666.6,3.75006]
[1727441241695,0.8286,2667.2,2666.8,3.74972]
[1727441242365,0.8286,2667.2,2666.8,7.49944]
[1727441242586,0.8286,2667.2,2667.0,3.74943]
[1727441242762,0.7846,2667.6,2667.1,0.374943]
[1727441242968,4.53339,2667.6,2667.0,3.74943]
[1727441243450,3.74884,2667.5,2667.0,3.74943]
[1727441244354,4.53274,2667.2,2666.6,3.74996]
[1727441244599,3.74962,2667.0,2666.4,7.50061]
[1727441244934,0.7587,2666.9,2666.4,3.75029]
[1727441245143,4.50844,2666.9,2666.4,3.75029]
[1727441245436,3.74985,2666.8,2666.2,3.75057]
[1727441245618,3.74985,2666.8,2666.2,7.50113]
[1727441245940,3.74985,2666.8,2666.2,7.50114]
[1727441246142,3.74985,2666.8,2666.3,3.75043]
[1727441246318,1.96148825,2666.9,2666.4,3.75029]
[1727441246516,1.96148825,2666.9,2666.3,3.75041]
[1727441246706,3.7499,2666.8,2666.3,3.75041]
[1727441247936,7.49979,2666.8,2666.3,3.75041]
[1727441248140,3.74989,2666.8,2666.3,3.75041]
[1727441248368,0.7587,2666.9,2666.3,7.50082]
[1727441248528,3.74989,2666.8,2666.2,3.75064]
[1727441249165,0.7777,2666.6,2665.9,0.7654]
[1727441249375,0.7777,2666.4,2665.9,3.75096]
[1727441249522,4.52814,2666.4,2665.9,3.75096]
[1727441249724,0.7777,2666.4,2666.0,3.75093]
[1727441249929,0.7777,2666.4,2665.9,3.75096]
[1727441250124,0.7777,2666.4,2666.1,3.75076]
[1727441250979,0.7777,2666.4,2665.9,0.375096]
[1727441250980,0.7777,2666.4,2665.9,4.126116]
[1727441251265,4.54752252,2666.4,2666.0,3.75091]
[1727441251429,0.7777,2666.4,2666.0,7.50176]
[1727441251624,0.7777,2666.4,2666.0,3.75085]
[1727441254231,4.5281,2666.4,2665.8,3.75115]
[1727441254570,0.7777,2666.4,2665.9,3.75099]
[1727441255069,0.7777,2666.4,2665.8,3.75113]
[1727441255430,0.7777,2666.4,2665.9,3.751]
[1727441256547,4.52812,2666.4,2665.9,3.751]
[1727441257179,5.73293725,2666.4,2665.9,3.751]
[1727441257475,1.98251725,2666.4,2665.9,3.751]
[1727441257638,5.73288725,2666.4,2665.9,3.751]
[1727441258379,1.98251725,2666.4,2665.9,3.751]
[1727441258554,1.98251725,2666.4,2665.9,7.502]
[1727441258750,1.98251725,2666.4,2665.9,3.75097]
[1727441258949,1.98251725,2666.4,2665.9,3.75094]
[1727441259152,5.73288725,2666.4,2665.9,3.75094]
[1727441259371,1.98251725,2666.4,2665.9,7.50194]
[1727441259640,0.57327473,2666.3,2665.7,7.50251]
[1727441259786,0.7973,2666.2,2665.8,3.75121]
[1727441260163,0.7973,2666.2,2665.7,7.50252]
[1727441260480,4.54796,2666.2,2665.7,3.75124]
[1727441260644,0.7762,2666.0,2665.5,3.75153]
[1727441260843,0.7762,2666.0,2665.2,7.5205]
[1727441260844,0.7762,2666.0,2665.3,3.55]
[1727441261047,0.7762,2666.0,2665.5,7.5031]
[1727441261290,0.7762,2666.0,2665.3,6.75184]
[1727441261453,4.51765,2665.9,2665.3,3.75184]
[1727441261655,4.51765,2665.9,2664.9,7.50476]
[1727441261656,0.7923,2665.5,2664.9,7.50476]
[1727441261850,0.7923,2665.2,2664.7,3.75266]
[1727441262190,0.7923,2665.2,2664.8,3.75259]
[1727441262884,0.7923,2665.2,2664.7,3.75269]
[1727441262885,4.54447,2665.2,2664.7,3.75269]
[1727441263089,0.7923,2665.2,2664.7,7.50535]
[1727441263290,0.7923,2665.2,2664.5,3.75296]
[1727441263537,0.7923,2665.2,2664.6,0.455376]
[1727441263834,0.7923,2665.2,2664.7,3.75272]
[1727441264655,0.7923,2665.2,2664.7,3.75267]
[1727441265009,0.7923,2665.2,2664.7,3.75266]
[1727441265215,0.7923,2665.2,2664.7,7.50535]
[1727441265434,0.7923,2665.2,2664.7,3.75266]
[1727441266356,0.7923,2665.2,2664.8,3.75249]
[1727441266651,0.7923,2665.2,2665.0,3.75226]
[1727441267014,0.7923,2665.2,2665.1,3.7522]
[1727441267529,0.8314,2665.7,2665.2,3.75203]
[1727441267729,0.8314,2665.7,2665.1,3.7522]
[1727441267730,0.45827,2665.6,2665.1,3.7522]
[1727441268122,0.8071,2665.5,2665.1,3.7522]
[1727441268330,0.8071,2665.5,2665.0,3.75226]
[1727441268768,0.8071,2665.5,2665.1,3.75211]
[1727441268976,3.75075,2666.2,2665.6,3.75142]
[1727441269158,4.54701,2666.1,2665.5,3.75151]
[1727441269368,1.625876,2666.1,2665.2,4.56692252]
[1727441269534,0.7961,2666.1,2665.9,3.75105]
[1727441269728,0.7961,2666.1,2665.9,7.50199]
[1727441269932,0.7961,2666.6,2666.1,3.75068]
[1727441270375,0.7961,2666.6,2666.3,3.75042]
[1727441270674,0.7961,2666.6,2665.8,7.59600747]
[1727441270675,0.7961,2666.6,2666.5,3.75023]
[1727441270832,0.8107,2667.1,2666.6,3.75003]
[1727441271255,0.8107,2667.1,2666.4,3.75025]
[1727441271444,1.266704,2667.1,2666.6,3.75007]
[1727441271638,1.266704,2667.1,2666.5,3.75022]
[1727441271874,5.016174,2667.1,2666.4,3.75025]
[1727441272075,4.6261814,2667.0,2666.4,3.75025]
[1727441272576,3.74985,2666.8,2666.2,3.75059]
[1727441272927,3.74985,2666.8,2666.0,3.75088]
[1727441272928,3.74996,2666.7,2666.0,3.75083]
[1727441273148,1.136885,2666.7,2666.1,3.75077]
[1727441273345,4.886855,2666.7,2666.1,3.75077]
[1727441273676,1.136885,2666.7,2666.1,3.75077]
[1727441273879,1.2680735,2666.6,2666.0,3.75083]
[1727441274176,4.52954,2666.6,2666.0,3.75083]
[1727441274346,3.75039,2666.4,2665.8,3.7512]
[1727441274533,0.7859,2666.3,2665.8,3.7512]
[1727441275200,4.53642,2666.3,2665.8,3.7512]
[1727441275402,8.28701,2666.3,2665.6,3.7514]
[1727441275700,4.53642,2666.3,2665.6,4.12652]
[1727441275914,0.8328,2666.2,2665.6,3.75138]
[1727441276100,3.75087,2666.1,2665.5,3.75161]
[1727441276505,3.75122,2665.8,2665.2,3.75197]
[1727441276701,0.7969,2665.7,2665.2,7.50394]
[1727441276872,0.7969,2665.7,2665.2,3.75197]
[1727441276873,4.54827,2665.7,2665.2,3.75197]
[1727441277697,3.75151,2665.6,2665.1,3.75219]
[1727441277896,4.54827,2665.7,2665.1,3.75219]
[1727441278503,0.7969,2665.7,2665.2,3.75195]
[1727441278703,0.7969,2665.7,2665.2,7.50387]
[1727441278903,0.7969,2665.7,2665.2,3.75192]
[1727441279125,0.7969,2665.7,2665.3,0.375192]
[1727441280275,0.7969,2665.7,2665.2,3.75192]
[1727441280922,0.7969,2665.7,2665.3,3.75189]
[1727441281215,3.75159,2665.6,2664.8,3.75255]
[1727441281418,4.52393,2665.3,2664.8,3.75253]
[1727441282221,0.772,2665.3,2664.9,3.75247]
[1727441282381,0.772,2665.3,2665.0,3.75233]
[1727441282595,0.7533,2665.7,2665.2,3.75196]
[1727441282913,0.7533,2665.7,2665.4,3.75176]
[1727441285179,4.50473,2665.7,2665.2,0.750425]
[1727441285386,4.50473,2665.7,2665.1,3.7522]
[1727441285783,4.50473,2665.7,2665.0,3.75223]
[1727441285993,4.50473,2665.7,2665.1,3.75216]
[1727441285994,3.75159,2665.6,2665.1,3.75216]
[1727441286233,0.7533,2665.7,2665.2,3.75205]
[1727441286735,4.50473,2665.7,2665.1,4.581219]
[1727441286937,4.50473,2665.7,2665.2,3.75204]
[1727441287226,8.25618,2665.7,2665.2,3.75204]
[1727441287431,4.50473,2665.7,2665.2,3.75204]
[1727441287590,3.75152,2665.6,2665.1,0.829059]
[1727441288019,4.50473,2665.7,2665.1,0.829059]
[1727441288230,4.50473,2665.7,2665.1,3.75213]
[1727441288432,3.75178,2665.4,2664.9,3.0]
[1727441288643,4.52088,2665.3,2664.8,3.75251]
[1727441288936,0.7689,2665.3,2665.0,3.75222]
[1727441289147,0.7864,2665.7,2665.2,3.75196]
[1727441289301,0.7864,2665.7,2665.4,3.75167]
[1727441289701,0.784,2666.0,2665.9,3.75107]
[1727441289834,0.784,2666.3,2666.0,3.75088]
[1727441290206,0.784,2666.3,2665.8,3.76982252]
[1727441290207,0.784,2666.3,2666.1,3.75078]
[1727441290409,0.7759,2666.7,2666.1,3.75078]
[1727441290738,4.52593,2666.7,2666.1,7.5014]
[1727441291052,3.75034,2666.5,2665.9,3.75099]
[1727441291235,0.375034,2666.4,2665.9,7.50198]
[1727441291539,0.375034,2666.4,2665.6,4.57922252]
[1727441291540,5.17297709,2666.7,2666.1,3.75069]
[1727441291710,8.27597,2666.7,2666.1,3.75069]
[1727441291911,4.52592,2666.7,2666.1,3.75069]
[1727441292270,4.52592,2666.7,2666.2,3.75063]
[1727441292546,0.7759,2666.7,2666.2,3.75063]
[1727441293531,4.52586,2666.7,2666.1,3.75069]
[1727441294054,7.5004,2666.6,2665.9,3.75101]
[1727441294252,1.99391327,2666.7,2665.9,3.75099]
[1727441294412,0.7759,2666.7,2666.1,3.7507]
[1727441294840,0.7759,2666.7,2666.3,3.75041]
[1727441295239,0.7759,2666.7,2666.1,3.75067]
[1727441295548,3.75009,2666.6,2666.1,3.75067]
[1727441295714,0.7759,2666.7,2666.2,3.75064]
[1727441295912,4.52589,2666.7,2666.1,7.50137]
[1727441296156,0.7759,2666.7,2666.1,3.75067]
[1727441296354,0.7759,2666.7,2666.2,3.75063]
[1727441296723,4.52588,2666.7,2666.2,3.75063]
[1727441296925,3.75011,2666.6,2666.1,3.75067]
[1727441297108,1.603472,2666.7,2666.1,3.75067]
[1727441297313,5.353492,2666.7,2666.1,3.75067]
[1727441297660,0.7973,2666.2,2665.5,3.75154]
[1727441297854,0.7973,2666.2,2665.7,3.75135]
[1727441298147,0.7973,2666.2,2665.8,3.75113]
[1727441298857,0.7973,2666.2,2665.8,3.75114]
[1727441299055,0.7973,2666.2,2665.9,3.75107]
[1727441299257,0.7973,2666.2,2665.7,3.75127]
[1727441299412,0.7973,2666.2,2665.8,3.75108]
[1727441300215,0.7973,2666.2,2665.7,3.75127]
[1727441300649,0.7973,2666.2,2665.3,7.51318]
[1727441300650,1.627135,2666.2,2665.8,3.75114]
[1727441300854,0.7973,2666.2,2665.8,3.75114]
[1727441301949,0.7973,2666.2,2665.9,3.75095]
[1727441302253,0.7973,2666.2,2665.7,3.75134]
[1727441302555,0.7973,2666.2,2665.9,3.75106]
[1727441302933,0.7838,2666.5,2666.1,3.75079]
[1727441303144,0.7838,2666.5,2666.2,3.75055]
[1727441303660,0.7838,2666.5,2666.3,3.75046]
[1727441304511,0.7838,2666.5,2666.2,3.75055]
[1727441304746,0.7838,2666.5,2666.0,3.75092]
[1727441304947,0.7838,2666.5,2666.1,3.75078]
[1727441305146,0.7838,2666.5,2666.2,3.75064]
[1727441307046,0.7838,2666.5,2666.3,3.75043]
[1727441307753,0.7838,2666.5,2666.3,3.75049]
[1727441308146,0.7838,2666.5,2666.2,4.31173144]
[1727441308347,0.7838,2666.5,2666.2,8.06230144]
[1727441308880,0.7838,2666.5,2666.3,3.75051]
[1727441309085,0.7838,2666.5,2666.2,4.31166144]
[1727441309594,0.7838,2666.5,2666.2,4.31165144]
[1727441309746,0.7838,2666.5,2666.2,8.06221144]
[1727441309946,0.7838,2666.5,2666.2,4.31165144]
[1727441310183,0.7838,2666.5,2666.2,8.06220144]
[1727441310386,0.7838,2666.5,2666.2,8.06218144]
[1727441310587,0.7838,2666.5,2666.2,3.75054]
[1727441311185,0.7838,2666.5,2666.3,3.7505]
[1727441311385,0.7838,2666.5,2666.2,3.75054]
[1727441311560,0.7838,2666.5,2666.3,3.75048]
[1727441312073,0.7838,2666.5,2666.2,3.75063]
[1727441312311,0.7838,2666.5,2666.0,3.75084]
[1727441312600,0.7838,2666.5,2666.1,3.75076]
[1727441313298,0.7838,2666.5,2666.2,3.75065]
[1727441316283,0.7838,2666.5,2666.0,3.7508]
[1727441316474,0.7838,2666.5,2666.1,3.75079]
[1727441316871,0.7838,2666.5,2666.2,3.75064]
[1727441317413,0.7838,2666.5,2666.0,7.50166]
[1727441317711,0.7838,2666.5,2666.1,3.75079]
[1727441319002,4.53403,2666.5,2666.0,3.7508]
[1727441319165,4.987408,2666.5,2666.0,3.7508]
[1727441320221,1.237178,2666.5,2666.0,3.7508]
[1727441320461,1.237178,2666.5,2666.1,3.75078]
[1727441320761,0.7838,2666.5,2666.1,3.75078]
[1727441320971,0.7838,2666.5,2666.1,7.50156]
[1727441321154,0.7838,2666.5,2666.2,3.75065]
[1727441322069,0.7838,2666.5,2666.1,3.75071]
[1727441322423,0.7838,2666.5,2666.1,7.50143]
[1727441322630,0.7838,2666.5,2666.1,3.75071]
[1727441324778,0.7838,2666.5,2666.1,7.50143]
[1727441324974,0.7838,2666.5,2666.1,3.75071]
[1727441325660,0.7838,2666.5,2665.3,0.7585]
[1727441325661,0.8303,2666.2,2665.3,0.7585]
[1727441325867,0.7722,2665.7,2665.2,3.75197]
[1727441326070,4.52357,2665.7,2665.1,3.75215]
[1727441326385,3.7515,2665.6,2665.0,7.50451]
[1727441326681,4.203857,2665.6,2665.0,3.75225]
[1727441326864,0.452357,2665.6,2665.1,3.75219]
[1727441327939,0.452357,2665.6,2665.2,3.752]
[1727441328136,0.7722,2665.7,2665.4,3.75176]
[1727441328378,0.7722,2665.7,2665.3,3.75181]
[1727441328751,0.7722,2665.7,2665.3,7.50364]
[1727441329447,0.7722,2665.7,2665.4,3.75176]
[1727441329749,0.7722,2665.7,2665.3,3.75181]
[1727441331896,0.7722,2665.7,2665.4,3.75174]
[1727441332097,0.7722,2665.7,2665.4,3.75176]
[1727441332478,0.7722,2665.7,2665.4,4.502117]
[1727441333977,0.7608,2666.0,2665.6,3.75146]
[1727441334796,0.7608,2666.0,2665.5,3.75154]
[1727441335007,3.75109,2665.9,2665.4,4.502137]
[1727441335300,0.7608,2666.0,2665.1,6.75206]
[1727441335301,3.75145,2665.7,2665.1,6.75206]
[1727441335468,7.5029,2665.7,2665.1,6.75206]
[1727441335794,3.75145,2665.7,2665.2,3.75198]
[1727441335994,3.75145,2665.7,2665.3,3.75191]
[1727441336370,4.56632,2665.8,2665.3,3.75191]
[1727441336570,0.8151,2665.8,2665.4,3.75176]
[1727441336784,0.8151,2665.8,2665.3,7.50374]
[1727441337008,0.8151,2665.8,2665.3,4.8772586]
[1727441337301,0.8151,2665.8,2665.4,3.7517]
[1727441338205,0.8151,2665.8,2665.5,3.75162]
[1727441338658,0.8151,2665.8,2665.3,4.8772086]
[1727441339315,0.8151,2665.8,2665.4,3.75171]
[1727441339807,0.8151,2665.8,2665.1,7.502706]
[1727441340107,8.26792,2665.7,2665.1,11.254776]
[1727441340261,4.51646,2665.7,2665.1,6.75207]
[1727441340462,0.7651,2665.7,2665.3,3.75185]
[1727441340809,0.7651,2665.7,2665.3,7.50367]
[1727441341103,0.7651,2665.7,2665.3,8.554037]
[1727441341299,0.7651,2665.7,2665.3,4.802187]
[1727441341503,0.7651,2665.7,2665.5,3.75161]
[1727441342429,0.7651,2665.7,2665.5,7.50315]
[1727441342641,5.32072292,2666.1,2665.5,3.75154]
[1727441342793,0.8094,2666.0,2665.7,3.75135]
[1727441343114,4.5583,2666.4,2665.8,3.75117]
[1727441343436,4.5583,2666.4,2665.8,3.75113]
[1727441343603,0.7876,2666.3,2665.9,3.75107]
[1727441345020,0.7876,2666.3,2665.8,3.75113]
[1727441345329,0.7876,2666.3,2666.0,3.75084]
[1727441345628,0.7876,2666.3,2665.8,4.126233]
[1727441345922,0.7876,2666.3,2666.0,3.75091]
[1727441346946,3.75017,2666.6,2666.1,3.75076]
[1727441347229,3.75025,2666.5,2666.0,3.75091]
[1727441347402,0.8276,2666.3,2665.8,3.75111]
[1727441347603,0.8276,2665.7,2665.3,4.54159]
[1727441347833,0.8276,2665.7,2665.3,3.75179]
[1727441348127,0.8276,2665.7,2665.1,8.29397]
[1727441348299,4.57896,2665.7,2665.1,8.29397]
[1727441348501,3.75185,2665.4,2664.9,3.75239]
[1727441348704,5.43201908,2665.7,2664.9,3.75239]
[1727441348705,3.75174,2665.5,2664.9,7.50478]
[1727441348887,0.7889,2665.4,2665.0,3.75232]
[1727441349091,4.54068,2665.4,2664.9,3.75239]
[1727441349404,5.369922,2665.4,2664.7,3.75266]
[1727441349605,5.369922,2665.4,2664.5,0.7837]
[1727441349606,3.77139308,2665.3,2664.8,3.75259]
[1727441349822,9.121882,2665.4,2664.7,3.75267]
[1727441349823,5.370012,2665.4,2664.7,3.75267]
[1727441350056,3.75205,2665.3,2664.8,3.75257]
[1727441350237,5.04139551,2665.3,2664.7,7.50532]
[1727441350440,1.618142,2665.4,2664.8,3.75252]
[1727441350664,4.54078,2665.4,2664.9,3.75239]
[1727441350848,0.7889,2665.4,2665.0,3.75226]
[1727441351366,0.7889,2665.4,2665.0,3.75224]
[1727441351863,0.7889,2665.4,2665.0,4.502718]
[1727441352034,0.7604,2665.7,2665.3,3.75183]
[1727441352234,0.7604,2665.7,2665.2,3.75205]
[1727441352553,0.7604,2665.7,2665.2,3.75197]
[1727441352951,0.7604,2665.7,2665.3,3.75188]
[1727441353171,0.7604,2665.7,2665.2,3.75197]
[1727441353691,4.51177,2665.7,2665.1,3.75211]
[1727441354157,0.7604,2665.7,2665.3,3.75189]
[1727441354357,0.7604,2665.7,2665.3,7.50373]
[1727441354563,0.7604,2665.7,2665.5,3.75162]
[1727441354733,0.7604,2665.7,2665.3,3.75184]
[1727441355273,0.7604,2665.7,2665.3,7.50366]
[1727441355471,0.7604,2665.7,2665.1,0.831092]
[1727441355680,0.7604,2665.7,2665.1,3.75211]
[1727441355681,4.5118,2665.7,2665.1,3.75211]
[1727441356164,4.5118,2665.7,2665.0,3.75224]
[1727441356374,3.75184,2665.4,2664.9,6.75248]
[1727441357078,0.8165,2665.3,2664.9,3.0]
[1727441357374,0.8165,2665.3,2664.9,6.7524]
[1727441357616,0.8165,2665.3,2664.9,3.0]
[1727441358114,0.8165,2665.3,2664.9,6.75246]
[1727441358673,0.8165,2665.3,2664.9,3.0]
[1727441359107,4.56843,2665.3,2664.9,3.0]
[1727441359798,4.56843,2665.3,2664.6,3.75285]
[1727441359987,3.75207,2665.2,2664.7,3.75276]
[1727441361598,4.56845,2665.3,2664.8,3.75259]
[1727441361895,3.75207,2665.2,2664.8,3.75259]
[1727441362618,3.75207,2665.2,2664.7,6.75276]
[1727441362919,3.75221,2665.1,2664.6,3.75285]
[1727441363129,3.75207,2665.2,2664.6,3.75285]
[1727441363423,3.75207,2665.2,2664.6,3.75282]
[1727441363424,0.7875,2665.1,2664.6,3.75282]
[1727441363782,0.7875,2665.1,2664.4,3.7531]